bitfinex-derivatives/quotes_BTCF0:USTF0_20241117
["timestamp","ask_amount","ask_price","bid_price","bid_amount"]
[1731875728866,0.00010865,89754.0,89741.0,0.10384]
[1731875729067,0.055712,89742.0,89741.0,0.10384]
[1731875729265,0.055712,89742.0,89741.0,0.11429162]
[1731875730273,0.055712,89742.0,89741.0,0.10384]
[1731875730980,0.3608,89746.0,89730.0,0.0304]
[1731875730981,0.3608,89746.0,89737.0,0.10384]
[1731875731175,0.055718,89733.0,89732.0,0.02229402]
[1731875731483,0.3608,89746.0,89730.0,0.10384]
[1731875731484,0.3608,89738.0,89730.0,0.10384]
[1731875731774,0.055719,89731.0,89730.0,0.10384]
[1731875731977,0.055719,89731.0,89726.0,0.00167155]
[1731875731978,0.055721,89727.0,89726.0,0.00167155]
[1731875733076,0.3608,89728.0,89726.0,0.05739355]
[1731875733271,0.1319058,89750.0,89727.0,0.3608]
[1731875733473,0.05572,89729.0,89726.0,0.00167155]
[1731875733681,0.3608,89728.0,89726.0,0.00167155]
[1731875733886,0.055726,89719.0,89718.0,0.00012475]
[1731875734179,0.416526,89719.0,89718.0,0.00012475]
[1731875734678,0.416526,89719.0,89699.0,0.0052]
[1731875734679,0.055738,89700.0,89699.0,0.0052]
[1731875734871,0.055728,89717.0,89696.0,0.05574]
[1731875734872,0.3608,89704.0,89696.0,0.05574]
[1731875735671,0.3608,89704.0,89700.0,8.905e-05]
[1731875736073,0.3618,89704.0,89700.0,8.905e-05]
[1731875736671,0.3628,89704.0,89700.0,8.905e-05]
[1731875736980,0.055737,89701.0,89700.0,8.905e-05]
[1731875737182,0.055737,89701.0,89700.0,0.01054563]
[1731875737976,0.055737,89701.0,89700.0,0.01054571]
[1731875738288,0.055737,89701.0,89700.0,0.01554571]
[1731875738482,0.055737,89701.0,89700.0,0.02354571]
[1731875738683,0.056737,89701.0,89700.0,0.02354571]
[1731875739075,0.056737,89701.0,89700.0,0.01554571]
[1731875739277,0.057737,89701.0,89700.0,0.02654571]
[1731875742288,0.002,89701.0,89700.0,0.02654571]
[1731875742495,0.055737,89702.0,89700.0,0.38734539]
[1731875742678,0.055737,89702.0,89701.0,0.01045634]
[1731875743082,0.055734,89707.0,89701.0,0.01045634]
[1731875743285,0.055734,89707.0,89702.0,0.01045634]
[1731875743478,0.055734,89707.0,89703.0,0.01045634]
[1731875743677,0.055734,89707.0,89704.0,0.01045634]
[1731875743982,0.3608,89719.0,89705.0,0.01045634]
[1731875743983,0.055734,89706.0,89705.0,0.01045634]
[1731875745085,0.056734,89706.0,89705.0,0.01645634]
[1731875745482,0.057734,89706.0,89705.0,0.012]
[1731875745877,0.1319058,89723.0,89705.0,1.24761367]
[1731875746177,0.03253649,89742.0,89718.0,0.12889779]
[1731875746380,0.00167239,89743.0,89742.0,0.055712]
[1731875746578,0.00167239,89743.0,89742.0,0.10048]
[1731875746776,0.00167239,89743.0,89742.0,0.11093163]
[1731875748394,0.05738339,89743.0,89734.0,0.10048]
[1731875748580,0.055716,89736.0,89735.0,0.01045175]
[1731875748781,0.416516,89736.0,89735.0,0.01045175]
[1731875748984,0.69512,89736.0,89718.0,0.12278393]
[1731875749180,0.416522,89726.0,89719.0,0.01045308]
[1731875749385,0.055718,89733.0,89718.0,0.12278393]
[1731875750404,0.055718,89732.0,89724.0,0.055723]
[1731875750690,0.055718,89732.0,89725.0,0.055722]
[1731875751383,0.3608,89736.0,89729.0,0.05572]
[1731875751583,0.003,89732.0,89729.0,0.05572]
[1731875752689,0.3608,89736.0,89729.0,0.05572]
[1731875752690,0.3608,89736.0,89729.0,0.05772]
[1731875752999,0.3608,89736.0,89731.0,0.055719]
[1731875754384,0.003,89732.0,89731.0,0.055719]
[1731875754890,0.003,89732.0,89729.0,0.002]
[1731875754891,0.3638,89736.0,89733.0,0.055717]
[1731875755297,0.3638,89736.0,89735.0,0.055716]
[1731875755481,0.3608,89736.0,89735.0,0.055716]
[1731875755881,0.055704,89755.0,89741.0,0.055712]
[1731875755882,0.13201445,89754.0,89741.0,0.055712]
[1731875756081,0.1319058,89752.0,89741.0,0.055712]
[1731875756284,0.1319058,89753.0,89741.0,0.055712]
[1731875756587,0.1319058,89752.0,89741.0,0.055712]
[1731875757497,0.00010865,89754.0,89742.0,0.01045146]
[1731875758182,0.00467239,89743.0,89742.0,0.01045146]
[1731875758697,0.00467239,89743.0,89742.0,0.01245146]
[1731875759087,0.00467239,89743.0,89742.0,0.14134925]
[1731875759395,0.00467239,89743.0,89742.0,0.50214925]
[1731875759691,0.00010865,89754.0,89753.0,0.055705]
[1731875759891,0.00010865,89754.0,89753.0,0.19505425]
[1731875760488,0.00010865,89754.0,89753.0,0.18460279]
[1731875760800,0.00310865,89754.0,89753.0,0.18460279]
[1731875762000,0.00310865,89754.0,89753.0,0.18660279]
[1731875762198,0.00310865,89754.0,89753.0,0.002]
[1731875764607,0.13480487,89754.0,89753.0,0.002]
[1731875764815,0.00310865,89754.0,89753.0,0.002]
[1731875769121,0.39305365,89754.0,89753.0,0.00037271]
[1731875769321,0.42485365,89754.0,89753.0,6.575e-05]
[1731875769519,0.479037,89754.0,89753.0,6.575e-05]
[1731875769722,0.057292,89754.0,89753.0,6.575e-05]
[1731875769928,0.16792985,89754.0,89753.0,6.575e-05]
[1731875770227,0.00310865,89754.0,89753.0,6.575e-05]
[1731875770414,0.13498132,89754.0,89753.0,6.575e-05]
[1731875770616,0.00310865,89754.0,89753.0,6.575e-05]
[1731875771011,0.13498132,89754.0,89753.0,6.575e-05]
[1731875771216,0.00310865,89754.0,89753.0,6.575e-05]
[1731875772013,0.46922132,89754.0,89753.0,6.575e-05]
[1731875772214,0.33734865,89754.0,89753.0,6.575e-05]
[1731875773331,0.00310865,89754.0,89753.0,6.575e-05]
[1731875775431,7.641e-05,89754.0,89753.0,0.03186575]
[1731875775928,7.641e-05,89754.0,89753.0,0.06296575]
[1731875776427,7.641e-05,89754.0,89753.0,0.06309544]
[1731875776741,7.641e-05,89754.0,89753.0,0.07354476]
[1731875777425,7.641e-05,89754.0,89753.0,0.43434476]
[1731875780234,7.641e-05,89754.0,89753.0,0.52014065]
[1731875781634,7.641e-05,89754.0,89753.0,0.8563149]
[1731875781835,0.00012048,89763.0,89762.0,0.0557]
[1731875782134,0.055684,89788.0,89762.0,0.55748521]
[1731875782135,0.13208467,89774.0,89762.0,0.55748521]
[1731875782337,0.13208467,89776.0,89773.0,0.08579589]
[1731875782520,0.13208467,89776.0,89774.0,0.14214932]
[1731875782724,0.13214512,89777.0,89775.0,0.06614132]
[1731875783031,0.13214512,89777.0,89776.0,0.01044932]
[1731875783235,0.13214512,89778.0,89776.0,0.01044932]
[1731875783532,0.13380501,89779.0,89777.0,0.01044932]
[1731875783723,0.13380501,89779.0,89778.0,0.01044932]
[1731875783921,0.00167159,89779.0,89778.0,0.01044932]
[1731875785331,0.00167159,89779.0,89778.0,0.01144932]
[1731875785842,0.07123101,89784.0,89782.0,0.055687]
[1731875786023,0.1651814,89790.0,89783.0,0.01044932]
[1731875786226,0.00056001,89798.0,89789.0,0.08579589]
[1731875786522,0.0333,89804.0,89797.0,0.08579589]
[1731875786723,0.00012206,89799.0,89797.0,0.08579589]
[1731875787828,0.00012206,89799.0,89797.0,0.08679589]
[1731875788619,0.36092206,89799.0,89797.0,0.001]
[1731875788833,0.41659906,89799.0,89797.0,0.001]
[1731875789035,0.36092206,89799.0,89797.0,0.001]
[1731875789544,0.00012206,89799.0,89797.0,0.056678]
[1731875789739,0.00012206,89799.0,89798.0,0.01044492]
[1731875792524,0.00012206,89799.0,89797.0,0.055678]
[1731875794342,0.00012206,89799.0,89798.0,0.1004]
[1731875798748,0.00012206,89799.0,89796.0,0.08579589]
[1731875799041,0.00012206,89799.0,89797.0,0.10036]
[1731875799245,0.00012206,89799.0,89797.0,0.156038]
[1731875800051,0.00012206,89799.0,89797.0,0.10036]
[1731875800637,0.00012206,89799.0,89798.0,0.01044483]
[1731875803045,0.00012206,89799.0,89798.0,0.01144483]
[1731875807845,0.00012206,89799.0,89798.0,0.001]
[1731875808037,0.05579906,89799.0,89798.0,0.001]
[1731875808248,0.41659906,89799.0,89798.0,0.001]
[1731875808553,0.44749906,89799.0,89798.0,0.001]
[1731875809251,0.47926869,89799.0,89798.0,0.001]
[1731875809638,0.64467513,89799.0,89798.0,0.001]
[1731875809852,0.50165584,89799.0,89798.0,0.001]
[1731875810045,0.6129087,89799.0,89798.0,0.001]
[1731875810362,0.5820125,89799.0,89798.0,0.056677]
[1731875810648,0.41659906,89799.0,89798.0,0.056677]
[1731875810844,0.36092206,89799.0,89798.0,0.056677]
[1731875811040,0.1,89800.0,89798.0,0.01144488]
[1731875811237,0.1,89800.0,89799.0,0.06612188]
[1731875811451,0.1,89800.0,89799.0,0.055677]
[1731875812052,0.1,89800.0,89799.0,0.06612192]
[1731875813048,0.155676,89800.0,89799.0,0.01044492]
[1731875813242,0.26541344,89800.0,89798.0,0.001]
[1731875813454,0.22109044,89799.0,89798.0,0.001]
[1731875813654,0.1,89800.0,89799.0,0.001]
[1731875813843,0.20982822,89800.0,89799.0,0.001]
[1731875815446,0.20982822,89800.0,89793.0,0.05664]
[1731875815447,0.055678,89797.0,89793.0,0.05664]
[1731875815753,0.16575895,89795.0,89793.0,0.05568]
[1731875816059,0.16575895,89795.0,89794.0,0.01044558]
[1731875816455,0.21991443,89795.0,89793.0,0.05568]
[1731875816663,0.25307358,89794.0,89788.0,0.10032]
[1731875816846,0.25459714,89791.0,89790.0,0.055682]
[1731875817047,0.30875262,89791.0,89790.0,0.06612772]
[1731875817242,0.10983748,89791.0,89790.0,0.06612772]
[1731875817972,0.10983748,89791.0,89790.0,0.01044572]
[1731875818360,0.10983748,89791.0,89788.0,0.10032]
[1731875818656,0.05415548,89790.0,89789.0,0.00349508]
[1731875819049,0.05415782,89790.0,89789.0,0.00349508]
[1731875819744,0.055682,89790.0,89788.0,0.13156093]
[1731875820054,0.05415782,89789.0,89788.0,0.13156093]
[1731875820645,0.10984082,89789.0,89786.0,0.0222813]
[1731875820854,0.055684,89787.0,89786.0,0.10032]
[1731875821051,0.055684,89787.0,89786.0,0.11076638]
[1731875821052,0.10984182,89787.0,89786.0,0.11076638]
[1731875821252,0.10984182,89787.0,89786.0,0.10032]
[1731875822762,0.10984182,89787.0,89786.0,0.10132]
[1731875823362,0.83639989,89787.0,89764.0,0.1997616]
[1731875823661,0.83639989,89787.0,89767.0,0.0052]
[1731875823662,0.055696,89768.0,89767.0,0.0052]
[1731875823865,0.055699,89763.0,89762.0,0.0021]
[1731875824166,0.10987776,89763.0,89762.0,0.0021]
[1731875824551,0.58183403,89763.0,89762.0,0.0021]
[1731875824755,0.47068158,89763.0,89762.0,0.0021]
[1731875824954,0.416499,89763.0,89762.0,0.0021]
[1731875825159,0.416499,89763.0,89762.0,0.0161]
[1731875825357,0.416499,89763.0,89762.0,0.0251]
[1731875825561,0.3608,89763.0,89762.0,0.0251]
[1731875826060,0.3608,89763.0,89762.0,0.0898]
[1731875826254,0.00056001,89770.0,89769.0,0.055695]
[1731875826457,0.36247148,89782.0,89769.0,0.09624508]
[1731875826657,0.36247148,89782.0,89762.0,0.1214]
[1731875826658,0.055691,89776.0,89771.0,0.055694]
[1731875826865,0.055692,89774.0,89771.0,0.055694]
[1731875827166,0.055692,89774.0,89772.0,0.01044839]
[1731875827354,0.055692,89774.0,89773.0,0.01044791]
[1731875827663,0.36247148,89782.0,89780.0,0.055688]
[1731875827965,0.29978921,89782.0,89781.0,0.08579589]
[1731875829065,0.30078921,89782.0,89781.0,0.08579589]
[1731875829255,0.0318,89799.0,89781.0,0.44659589]
[1731875829256,0.055677,89799.0,89781.0,0.44659589]
[1731875829455,0.1,89800.0,89794.0,0.05568]
[1731875830054,0.1,89800.0,89796.0,0.08579589]
[1731875830565,0.1,89800.0,89798.0,0.055677]
[1731875831070,0.04883993,89800.0,89799.0,0.33768667]
[1731875831256,0.04883993,89800.0,89799.0,0.33768595]
[1731875831459,0.00013483,89804.0,89799.0,0.62324344]
[1731875831671,0.00013483,89804.0,89803.0,0.416474]
[1731875831858,0.00013483,89804.0,89803.0,0.52022208]
[1731875832859,0.00013483,89804.0,89803.0,0.52019901]
[1731875833260,0.23079697,89837.0,89803.0,0.52019901]
[1731875833261,0.16533338,89833.0,89803.0,1.20995924]
[1731875833461,0.055655,89835.0,89822.0,0.44659589]
[1731875833666,0.055655,89835.0,89823.0,0.10024]
[1731875833856,0.055655,89835.0,89820.0,0.0052]
[1731875833857,0.055658,89830.0,89824.0,0.10024]
[1731875834081,0.3608,89833.0,89829.0,0.08579589]
[1731875834371,9.88e-05,89835.0,89834.0,0.055655]
[1731875834971,9.88e-05,89835.0,89834.0,0.416455]
[1731875836563,0.3608,89859.0,89834.0,0.750415]
[1731875836864,0.00167016,89864.0,89858.0,0.3608]
[1731875837575,0.00167016,89864.0,89863.0,0.08579589]
[1731875838470,0.055639,89861.0,89859.0,0.00011397]
[1731875838864,0.416439,89861.0,89859.0,0.00011397]
[1731875839657,0.055639,89861.0,89859.0,0.00011397]
[1731875839972,0.00167016,89864.0,89859.0,0.00011397]
[1731875840867,0.3608,89860.0,89859.0,0.00011397]
[1731875843265,0.3608,89860.0,89849.0,0.0052]
[1731875843266,0.055645,89850.0,89849.0,0.0052]
[1731875843470,0.055645,89850.0,89838.0,0.1002]
[1731875843471,0.05565,89842.0,89838.0,0.1002]
[1731875843666,0.055646,89849.0,89838.0,0.1002]
[1731875843873,0.3608,89850.0,89838.0,0.1002]
[1731875844074,0.055652,89840.0,89838.0,0.1002]
[1731875844274,0.055652,89840.0,89839.0,0.00011404]
[1731875845176,0.3608,89850.0,89839.0,0.00011404]
[1731875845177,0.0304,89848.0,89846.0,0.055647]
[1731875845470,0.055644,89853.0,89846.0,0.055647]
[1731875845471,0.3608,89860.0,89846.0,0.055647]
[1731875845660,0.055643,89853.0,89839.0,0.00011404]
[1731875846275,0.055643,89853.0,89840.0,0.055651]
[1731875846573,0.3608,89860.0,89840.0,0.055651]
[1731875846574,0.3608,89860.0,89858.0,0.05564]
[1731875846877,0.3608,89860.0,89858.0,0.15584]
[1731875847173,0.05730616,89864.0,89858.0,0.15584]
[1731875847174,0.05730616,89864.0,89858.0,0.1002]
[1731875847368,0.05730616,89864.0,89861.0,0.055638]
[1731875847871,0.05730616,89864.0,89858.0,0.1002]
[1731875847872,0.055637,89863.0,89858.0,0.1002]
[1731875848072,0.055639,89860.0,89858.0,0.1002]
[1731875849164,0.00167016,89864.0,89861.0,0.055638]
[1731875855494,0.055637,89863.0,89862.0,0.1002]
[1731875856986,0.055637,89863.0,89861.0,0.1002]
[1731875858377,0.00167016,89864.0,89863.0,0.055637]
[1731875858781,0.00010128,89867.0,89866.0,0.055635]
[1731875858977,0.00010128,89867.0,89866.0,0.14143089]
[1731875859178,0.00010128,89867.0,89866.0,0.1518681]
[1731875859874,0.00010128,89867.0,89866.0,0.15545541]
[1731875860080,0.00010128,89867.0,89852.0,0.0052]
[1731875860081,1.00150455,89867.0,89852.0,0.0052]
[1731875860281,0.055643,89853.0,89852.0,0.0052]
[1731875860477,0.055651,89841.0,89839.0,0.00011404]
[1731875860680,0.055651,89841.0,89808.0,0.3608]
[1731875860681,0.8615256,89840.0,89812.0,0.03144422]
[1731875860887,0.8615256,89840.0,89808.0,0.3608]
[1731875860888,0.055669,89812.0,89808.0,0.10004]
[1731875861277,0.3608,89813.0,89808.0,0.10004]
[1731875861474,0.3608,89813.0,89800.0,0.055675]
[1731875861475,0.49306631,89813.0,89800.0,0.055675]
[1731875861673,0.49306631,89813.0,89799.0,0.10004]
[1731875861674,0.055673,89805.0,89799.0,0.10004]
[1731875861878,0.055673,89805.0,89804.0,0.00013408]
[1731875862083,0.416473,89805.0,89804.0,0.00013408]
[1731875863292,0.416473,89805.0,89804.0,0.02813408]
[1731875863584,0.416473,89805.0,89804.0,0.05413408]
[1731875864287,0.055673,89805.0,89804.0,0.05413408]
[1731875869508,0.05577342,89805.0,89804.0,0.05413408]
[1731875869882,0.055685,89786.0,89785.0,0.10008]
[1731875870089,0.055686,89784.0,89776.0,0.02228392]
[1731875870301,0.055686,89784.0,89780.0,0.10008]
[1731875870820,0.055686,89784.0,89781.0,7.839e-05]
[1731875871221,0.08579589,89782.0,89759.0,0.10008]
[1731875871416,0.08579589,89782.0,89752.0,0.055705]
[1731875871417,0.055701,89760.0,89752.0,0.416505]
[1731875871614,0.055702,89758.0,89753.0,0.10008]
[1731875872221,0.055702,89758.0,89754.0,0.00013007]
[1731875872823,0.44659589,89766.0,89754.0,0.00013007]
[1731875873123,0.055699,89763.0,89757.0,0.055702]
[1731875873522,0.055702,89759.0,89757.0,0.10012]
[1731875873718,0.003,89758.0,89757.0,0.10012]
[1731875875114,0.055704,89756.0,89754.0,0.00013007]
[1731875875330,0.055704,89756.0,89754.0,0.10025007]
[1731875876022,0.055704,89756.0,89754.0,0.00013007]
[1731875876428,0.00010084,89755.0,89754.0,0.00013007]
[1731875876627,0.03100084,89755.0,89754.0,0.00013007]
[1731875877714,0.03900084,89755.0,89754.0,0.00013007]
[1731875878505,0.39980084,89755.0,89754.0,0.00013007]
[1731875878903,0.40480084,89755.0,89754.0,0.00013007]
[1731875879303,0.40080084,89755.0,89754.0,0.00013007]
[1731875881300,0.39580084,89755.0,89754.0,0.00013007]
[1731875881500,0.40080084,89755.0,89754.0,0.00013007]
[1731875881900,0.39580084,89755.0,89754.0,0.00013007]
[1731875882103,0.40080084,89755.0,89754.0,0.00013007]
[1731875882999,0.39580084,89755.0,89754.0,0.00013007]
[1731875883195,0.40080084,89755.0,89754.0,0.00013007]
[1731875883398,0.36590084,89755.0,89754.0,0.00013007]
[1731875883597,0.36990084,89755.0,89754.0,0.00013007]
[1731875883812,0.055708,89748.0,89747.0,0.00196]
[1731875884010,0.58809978,89748.0,89747.0,0.00196]
[1731875884402,0.50230389,89748.0,89747.0,0.00196]
[1731875885100,0.055708,89748.0,89747.0,0.00196]
[1731875885521,0.060708,89748.0,89747.0,0.00196]
[1731875886305,0.064708,89748.0,89747.0,0.00196]
[1731875887117,0.009,89748.0,89747.0,0.00196]
[1731875888707,0.008,89748.0,89747.0,0.00196]
[1731875889103,0.3608,89765.0,89747.0,0.00196]
[1731875889104,0.3608,89777.0,89754.0,0.055705]
[1731875889411,0.3608,89777.0,89747.0,0.42203589]
[1731875889412,0.055705,89753.0,89748.0,0.055708]
[1731875889714,0.3608,89769.0,89749.0,0.10008]
[1731875889715,0.055707,89751.0,89749.0,0.10008]
[1731875889910,0.055708,89748.0,89747.0,0.00196]
[1731875890109,0.059708,89748.0,89747.0,0.00196]
[1731875890307,0.05985152,89748.0,89747.0,0.00196]
[1731875890712,0.00414352,89748.0,89747.0,0.00196]
[1731875890903,0.00014352,89748.0,89747.0,0.00196]
[1731875891411,0.00014352,89748.0,89747.0,0.10204]
[1731875891806,0.00014352,89748.0,89747.0,0.43632]
[1731875892004,0.004,89751.0,89750.0,0.14150289]
[1731875892208,0.0052,89763.0,89762.0,0.0557]
[1731875892409,0.3608,89779.0,89771.0,0.055693]
[1731875892410,0.0052,89776.0,89771.0,0.055693]
[1731875892607,0.416489,89779.0,89771.0,0.055693]
[1731875892608,0.05624901,89779.0,89771.0,0.055693]
[1731875892808,0.00056001,89779.0,89760.0,0.3608]
[1731875893007,0.055703,89757.0,89756.0,0.0052]
[1731875893222,0.055708,89748.0,89747.0,0.00196]
[1731875893419,0.14150389,89748.0,89747.0,0.00196]
[1731875893814,0.14150389,89748.0,89737.0,0.055715]
[1731875893815,0.055711,89744.0,89740.0,0.055713]
[1731875894014,0.055712,89742.0,89740.0,0.055713]
[1731875894518,0.055714,89740.0,89738.0,0.3608]
[1731875895821,0.001,89748.0,89747.0,0.055709]
[1731875896126,0.13226631,89764.0,89747.0,0.055709]
[1731875896127,0.0052,89761.0,89760.0,0.055701]
[1731875896312,0.0052,89761.0,89747.0,0.47578489]
[1731875896313,0.0001369,89772.0,89759.0,0.10008]
[1731875896506,0.0001369,89772.0,89769.0,0.050495]
[1731875896713,0.0001369,89772.0,89760.0,0.10008]
[1731875896714,0.0001369,89772.0,89771.0,0.055694]
[1731875898223,0.0051369,89772.0,89771.0,0.055694]
[1731875898433,0.16479957,89798.0,89771.0,0.055694]
[1731875898434,0.13183966,89804.0,89782.0,0.055687]
[1731875898727,0.055671,89808.0,89797.0,0.055678]
[1731875899020,0.49263966,89811.0,89800.0,0.055676]
[1731875899221,0.13183966,89813.0,89797.0,0.10008]
[1731875899411,0.13183966,89813.0,89801.0,0.18439674]
[1731875899412,0.00012451,89802.0,89801.0,0.18439674]
[1731875899613,0.00012451,89802.0,89801.0,0.18451601]
[1731875901131,0.00012451,89802.0,89801.0,0.00011927]
[1731875902032,0.00212451,89802.0,89801.0,0.01011927]
[1731875902330,0.00412451,89802.0,89801.0,0.01911927]
[1731875902513,0.00612451,89802.0,89801.0,0.00911927]
[1731875902718,0.36692451,89802.0,89801.0,0.00911927]
[1731875903117,0.36692451,89802.0,89801.0,0.00011927]
[1731875903313,0.36692451,89802.0,89801.0,0.05579427]
[1731875903732,0.36492451,89802.0,89801.0,0.05579427]
[1731875903925,0.36692451,89802.0,89801.0,0.05579427]
[1731875905548,5.1e-07,89802.0,89801.0,0.18451601]
[1731875905733,0.13183966,89834.0,89801.0,0.18451601]
[1731875905918,0.36140001,89837.0,89828.0,0.055658]
[1731875906119,0.36144,89837.0,89828.0,0.055658]
[1731875906636,0.00011628,89829.0,89828.0,0.055658]
[1731875906927,0.36091628,89829.0,89815.0,0.10004]
[1731875907124,0.416463,89821.0,89816.0,0.055666]
[1731875907328,0.055665,89818.0,89816.0,0.055666]
[1731875907526,0.055665,89818.0,89809.0,0.10004]
[1731875907527,0.055666,89817.0,89811.0,0.055669]
[1731875907720,0.055666,89817.0,89812.0,0.055668]
[1731875908123,0.3608,89821.0,89813.0,0.055667]
[1731875908124,0.055666,89816.0,89813.0,0.055667]
[1731875908330,0.055666,89816.0,89814.0,0.055667]
[1731875908533,0.0316,89820.0,89810.0,0.05567]
[1731875908837,0.0316,89820.0,89819.0,0.055664]
[1731875909042,0.055674,89804.0,89802.0,0.055674]
[1731875909424,0.3608,89807.0,89805.0,0.055673]
[1731875909928,0.3608,89807.0,89801.0,0.00011927]
[1731875909929,0.055675,89802.0,89801.0,0.00011927]
[1731875910432,0.3608,89807.0,89801.0,0.00011927]
[1731875910625,0.3608,89807.0,89803.0,0.055674]
[1731875910826,0.055675,89802.0,89801.0,0.00011927]
[1731875911733,0.3608,89807.0,89801.0,0.00011927]
[1731875911925,0.3608,89807.0,89805.0,0.18439474]
[1731875912126,0.002,89807.0,89806.0,0.1]
[1731875912939,0.005,89807.0,89806.0,0.1]
[1731875920833,0.005,89807.0,89805.0,0.417353]
[1731875921134,0.005,89807.0,89806.0,0.09996]
[1731875921646,0.005,89807.0,89805.0,0.055673]
[1731875922031,0.002,89807.0,89805.0,0.055673]
[1731875922236,0.005,89807.0,89805.0,0.055673]
[1731875923137,0.005,89807.0,89805.0,0.18439474]
[1731875924834,0.005,89807.0,89806.0,0.09996]
[1731875925841,0.003,89807.0,89806.0,0.09996]
[1731875926039,0.005,89807.0,89806.0,0.09996]
[1731875926437,0.005,89807.0,89805.0,0.18439474]
[1731875926639,0.005,89807.0,89806.0,0.09996]
[1731875928446,0.003,89807.0,89806.0,0.09996]
[1731875928643,0.005,89807.0,89806.0,0.09996]
[1731875929239,0.003,89807.0,89806.0,0.09996]
[1731875929444,0.005,89807.0,89806.0,0.09996]
[1731875930448,0.005,89807.0,89806.0,0.30001071]
[1731875930633,0.005,89807.0,89806.0,0.09996]
[1731875931041,0.005,89807.0,89806.0,0.30001071]
[1731875931229,0.005,89807.0,89806.0,0.09996]
[1731875933147,0.005,89807.0,89805.0,0.18439474]
[1731875933349,0.005,89807.0,89806.0,0.09996]
[1731875933533,0.005,89807.0,89806.0,0.36560885]
[1731875934051,0.005,89807.0,89806.0,0.09996]
[1731875934345,0.13235872,89821.0,89820.0,0.055664]
[1731875934553,0.13235872,89826.0,89820.0,0.66086679]
[1731875934751,0.13242975,89828.0,89826.0,0.05566]
[1731875935444,0.13242975,89827.0,89826.0,0.05566]
[1731875935640,0.00011628,89829.0,89826.0,0.05566]
[1731875935841,0.00011628,89829.0,89827.0,0.055659]
[1731875936042,0.003,89828.0,89827.0,0.055659]
[1731875936239,0.13742641,89828.0,89827.0,0.055659]
[1731875936439,0.13440287,89828.0,89827.0,0.055659]
[1731875937344,0.13438396,89828.0,89827.0,0.055659]
[1731875937744,0.13238396,89828.0,89827.0,0.055659]
[1731875938133,0.13438396,89828.0,89827.0,0.055659]
[1731875938337,0.002,89828.0,89827.0,0.055659]
[1731875938544,0.003,89828.0,89827.0,0.055659]
[1731875939250,0.13538396,89828.0,89827.0,0.055659]
[1731875939448,0.003,89828.0,89827.0,0.055659]
[1731875940945,0.13538396,89828.0,89827.0,0.055659]
[1731875941140,0.003,89828.0,89827.0,0.055659]
[1731875941342,0.13538396,89828.0,89827.0,0.055659]
[1731875941544,0.003,89828.0,89827.0,0.055659]
[1731875941753,0.135402,89828.0,89827.0,0.055659]
[1731875941943,0.003,89828.0,89827.0,0.055659]
[1731875942945,0.055661,89824.0,89823.0,0.055661]
[1731875943250,0.055661,89824.0,89821.0,0.09992]
[1731875943251,0.055659,89827.0,89826.0,0.05566]
[1731875943456,0.003,89828.0,89827.0,0.055659]
[1731875943750,0.13239283,89838.0,89828.0,0.055659]
[1731875943953,0.55855949,89849.0,89828.0,0.055659]
[1731875943954,0.00101945,89832.0,89831.0,0.25568002]
[1731875944148,0.00101945,89832.0,89831.0,0.055657]
[1731875944450,0.3608,89849.0,89831.0,0.055657]
[1731875944451,0.13239283,89836.0,89835.0,0.055654]
[1731875944747,0.13239283,89840.0,89835.0,0.51957518]
[1731875944939,0.13239283,89840.0,89839.0,0.416452]
[1731875945139,0.13239283,89842.0,89839.0,0.3608]
[1731875945341,0.13239283,89843.0,89841.0,0.14134618]
[1731875945541,0.13239283,89844.0,89843.0,0.055649]
[1731875945946,0.3608,89849.0,89843.0,0.055649]
[1731875945947,0.13239283,89845.0,89843.0,0.055649]
[1731875946154,0.13239283,89847.0,89841.0,0.08569518]
[1731875946454,0.13223144,89847.0,89846.0,0.055647]
[1731875947049,0.13222911,89847.0,89841.0,0.08569518]
[1731875947352,0.13222911,89848.0,89846.0,0.055647]
[1731875947540,0.13222911,89848.0,89847.0,0.18561518]
[1731875948141,0.055654,89836.0,89835.0,0.0052]
[1731875948347,0.055654,89836.0,89825.0,0.0052]
[1731875948348,0.21783968,89836.0,89825.0,0.0052]
[1731875948547,0.21783968,89836.0,89821.0,0.08917631]
[1731875948548,0.055659,89828.0,89821.0,0.08917631]
[1731875948742,0.085959,89827.0,89821.0,0.08917631]
[1731875948937,0.0303,89827.0,89821.0,0.00166978]
[1731875949158,0.055662,89823.0,89821.0,0.10150978]
[1731875949350,0.18780401,89823.0,89821.0,0.10150978]
[1731875949652,0.13214201,89822.0,89821.0,0.00166978]
[1731875949840,0.13212913,89822.0,89821.0,0.00166978]
[1731875950250,0.055662,89823.0,89821.0,0.00166978]
[1731875950755,0.13213239,89822.0,89821.0,0.00166978]
[1731875951145,0.055662,89823.0,89821.0,0.01466978]
[1731875951551,0.057662,89823.0,89821.0,0.01466978]
[1731875951948,0.001,89822.0,89821.0,0.00166978]
[1731875952154,0.003,89822.0,89821.0,0.00166978]
[1731875952661,0.058662,89823.0,89821.0,0.00166978]
[1731875954162,0.057662,89823.0,89821.0,0.00166978]
[1731875954359,0.057662,89823.0,89821.0,0.05733278]
[1731875954360,0.001,89822.0,89821.0,0.05733278]
[1731875954659,0.003,89822.0,89821.0,0.05733278]
[1731875955051,0.002,89822.0,89821.0,0.05733278]
[1731875955251,0.058662,89823.0,89821.0,0.05733278]
[1731875955645,0.056662,89823.0,89821.0,0.05733278]
[1731875955850,0.002,89822.0,89821.0,0.05733278]
[1731875956248,0.001,89822.0,89821.0,0.05733278]
[1731875957253,0.057662,89823.0,89821.0,0.00166978]
[1731875957456,0.055667,89815.0,89814.0,0.0052]
[1731875957750,0.055667,89815.0,89810.0,0.09984]
[1731875957751,0.055667,89815.0,89812.0,0.055668]
[1731875958462,0.055667,89815.0,89813.0,0.055668]
[1731875958859,0.056667,89815.0,89813.0,0.055668]
[1731875959056,0.056667,89815.0,89810.0,0.09984]
[1731875959057,0.057667,89815.0,89814.0,0.007]
[1731875959561,0.13313239,89815.0,89810.0,0.09984]
[1731875959862,0.055674,89804.0,89802.0,0.060875]
[1731875960161,0.0301,89803.0,89802.0,0.055675]